bitfinex/quotes_BTCUSD_20251215
["timestamp","ask_amount","ask_price","bid_price","bid_amount"]
[1765784417151,0.11126095,89694.0,89693.0,0.01314914]
[1765784417553,0.11126095,89694.0,89693.0,0.01414914]
[1765784418145,0.01114814,89701.0,89698.0,0.01114852]
[1765784418400,0.11126095,89699.0,89698.0,0.01114852]
[1765784419718,0.01214814,89701.0,89695.0,0.01114889]
[1765784419719,0.01114827,89700.0,89695.0,0.01114889]
[1765784419871,0.11126095,89697.0,89695.0,0.01114889]
[1765784422280,0.11126095,89697.0,89696.0,0.22297538]
[1765784423473,0.11126095,89697.0,89696.0,0.22397538]
[1765784425181,0.11126095,89697.0,89696.0,0.001]
[1765784425429,0.33423384,89697.0,89696.0,0.001]
[1765784425736,0.11126095,89697.0,89696.0,0.001]
[1765784426501,0.0176,89700.0,89699.0,0.01114839]
[1765784426708,0.01114839,89699.0,89696.0,0.02872876]
[1765784426905,0.02874827,89700.0,89697.0,0.01114864]
[1765784428262,0.0176,89700.0,89697.0,0.23411962]
[1765784428412,0.0176,89700.0,89697.0,0.01114864]
[1765784429253,0.0176,89700.0,89698.0,0.22296797]
[1765784430397,0.0176,89700.0,89697.0,0.01114864]
[1765784430973,0.0176,89700.0,89698.0,0.22297041]
[1765784433085,0.0176,89700.0,89697.0,0.23412148]
[1765784433492,0.01114852,89698.0,89694.0,0.02491]
[1765784433730,0.23411906,89698.0,89694.0,0.03605901]
[1765784433902,0.11126095,89695.0,89694.0,0.01114901]
[1765784434086,0.11126095,89695.0,89694.0,0.22298035]
[1765784434289,0.01114839,89699.0,89695.0,0.01114889]
[1765784434492,0.11126095,89698.0,89696.0,0.22297538]
[1765784434691,0.11126095,89698.0,89695.0,0.01114889]
[1765784435093,0.11126095,89698.0,89696.0,0.22297538]
[1765784435393,0.11126095,89698.0,89696.0,0.23495538]
[1765784437715,0.11126095,89698.0,89696.0,0.01198]
[1765784439725,0.11126095,89698.0,89697.0,0.22297289]
[1765784440239,0.11126095,89698.0,89696.0,0.01198]
[1765784441643,0.0176,89700.0,89697.0,0.23412153]
[1765784442246,0.0176,89700.0,89697.0,0.23412061]
[1765784446048,0.0176,89700.0,89698.0,0.22296794]
[1765784446256,0.0176,89700.0,89698.0,0.24787794]
[1765784446450,0.0176,89700.0,89698.0,0.22296794]
[1765784446685,0.0176,89700.0,89697.0,0.23412061]
[1765784447046,0.0176,89700.0,89699.0,0.22296792]
[1765784460279,0.12886095,89700.0,89699.0,0.22296792]
[1765784460459,0.11126095,89698.0,89697.0,0.02362864]
[1765784460663,0.12240947,89698.0,89694.0,0.02262901]
[1765784460817,0.11126095,89696.0,89694.0,0.02262901]
[1765784461028,0.0176,89700.0,89696.0,0.01114876]
[1765784461652,0.0176,89700.0,89697.0,0.01114864]
[1765784461856,0.0176,89700.0,89696.0,0.01114876]
[1765784462739,0.02874827,89700.0,89696.0,0.01114876]
[1765784463175,0.01114839,89699.0,89696.0,0.01114876]
[1765784464680,0.01114864,89697.0,89694.0,0.02262901]
[1765784464914,0.01114839,89699.0,89696.0,0.01114876]
[1765784465471,0.11126095,89697.0,89696.0,0.01114876]
[1765784465646,0.11126095,89697.0,89690.0,0.23518983]
[1765784465647,0.01114939,89691.0,89686.0,0.01124392]
[1765784465790,0.11126095,89692.0,89689.0,0.22299278]
[1765784465999,0.11126095,89692.0,89689.0,0.23414082]
[1765784466443,0.11126095,89692.0,89691.0,0.22298781]
[1765784467472,0.0176,89699.0,89698.0,0.01114852]
[1765784467913,0.11126095,89698.0,89696.0,0.01114876]
[1765784468291,0.11126095,89698.0,89694.0,0.01114901]
[1765784468611,0.34538014,89698.0,89694.0,0.01114901]
[1765784468809,0.01114876,89696.0,89693.0,0.01114914]
[1765784469207,0.11126095,89698.0,89695.0,0.01114889]
[1765784470038,0.12240947,89698.0,89695.0,0.01114889]
[1765784470194,0.23412202,89697.0,89692.0,0.0122]
[1765784470396,0.01114864,89697.0,89692.0,0.02334926]
[1765784470599,0.01114864,89697.0,89693.0,0.01114914]
[1765784471041,0.01114876,89696.0,89693.0,0.01114914]
[1765784471245,0.14570947,89698.0,89694.0,0.23412936]
[1765784471485,0.01114876,89696.0,89693.0,0.01114914]
[1765784471632,0.01114864,89697.0,89694.0,0.01114901]
[1765784472077,0.14570947,89698.0,89694.0,0.23412885]
[1765784472281,0.12240947,89698.0,89695.0,0.01114889]
[1765784472770,0.34537991,89698.0,89695.0,0.01114889]
[1765784472969,0.01114864,89697.0,89692.0,0.01114926]
[1765784473593,0.01114864,89697.0,89694.0,0.01114901]
[1765784473751,0.11126095,89698.0,89695.0,0.01114889]
[1765784474360,0.34538003,89698.0,89695.0,0.01114889]
[1765784474669,0.12240947,89698.0,89695.0,0.01114889]
[1765784475610,0.11126095,89698.0,89695.0,0.01114889]
[1765784476868,0.11126095,89698.0,89695.0,0.23412454]
[1765784478306,0.11126095,89698.0,89696.0,0.22297311]
[1765784482192,0.0176,89710.0,89703.0,0.23410565]
[1765784482398,0.11126095,89705.0,89704.0,0.01114777]
[1765784482571,0.11126095,89705.0,89703.0,0.23410565]
[1765784484133,0.11126095,89705.0,89703.0,0.01114789]
[1765784484551,0.11226095,89705.0,89703.0,0.01114789]
[1765784484756,0.11126095,89705.0,89703.0,0.01114789]
[1765784484967,0.11126095,89705.0,89701.0,0.01114814]
[1765784485179,0.11226095,89705.0,89702.0,0.23410755]
[1765784485388,0.11126095,89705.0,89702.0,0.23410755]
[1765784485745,0.11326095,89705.0,89702.0,0.23410755]
[1765784485993,0.01114777,89704.0,89697.0,0.01114864]
[1765784486191,0.01114777,89704.0,89691.0,0.01690939]
[1765784486192,0.01114889,89695.0,89691.0,0.01690939]
[1765784486398,0.01114889,89695.0,89688.0,0.01114976]
[1765784486399,0.01114951,89690.0,89688.0,0.03348679]
[1765784486714,0.01114951,89690.0,89686.0,9.391e-05]
[1765784486715,0.11126095,89688.0,89686.0,9.391e-05]
[1765784486852,0.3500687,89687.0,89686.0,9.391e-05]
[1765784487197,0.3736287,89687.0,89686.0,9.391e-05]
[1765784487863,0.3736287,89687.0,89686.0,0.00209391]
[1765784488361,0.3736287,89687.0,89686.0,9.391e-05]
[1765784489021,0.3736287,89687.0,89686.0,0.00209391]
[1765784489416,0.3736287,89687.0,89686.0,9.391e-05]
[1765784489872,0.3746287,89687.0,89686.0,9.391e-05]
[1765784498778,0.34188426,89687.0,89686.0,9.391e-05]
[1765784498976,0.39747523,89687.0,89686.0,9.391e-05]
[1765784499192,0.40812248,89687.0,89686.0,9.391e-05]
[1765784500882,0.40812248,89687.0,89686.0,3.91e-06]
[1765784500883,2.69882248,89687.0,89686.0,3.91e-06]
[1765784501061,2.3941983,89687.0,89686.0,3.91e-06]
[1765784501287,1.37868873,89687.0,89686.0,3.91e-06]
[1765784501820,1.37768873,89687.0,89686.0,3.91e-06]
[1765784502026,1.38168873,89687.0,89686.0,3.91e-06]
[1765784502432,1.35775948,89687.0,89686.0,3.91e-06]
[1765784502642,1.36175948,89687.0,89686.0,3.91e-06]
[1765784503890,1.25134748,89687.0,89686.0,3.91e-06]
[1765784505519,1.26522057,89687.0,89686.0,3.91e-06]
[1765784506052,1.24762057,89687.0,89686.0,3.91e-06]
[1765784506253,1.26522057,89687.0,89686.0,3.91e-06]
[1765784506556,0.61216153,89687.0,89686.0,3.91e-06]
[1765784506742,0.82351648,89687.0,89686.0,3.91e-06]
[1765784507032,0.72342248,89687.0,89686.0,3.91e-06]
[1765784507443,0.71942248,89687.0,89686.0,3.91e-06]
[1765784507651,0.72242248,89687.0,89686.0,3.91e-06]
[1765784508395,0.82734015,89687.0,89686.0,3.91e-06]
[1765784508659,0.9386011,89687.0,89686.0,3.91e-06]
[1765784508874,0.9406011,89687.0,89686.0,3.91e-06]
[1765784514394,0.9645172,89687.0,89686.0,3.91e-06]
[1765784516168,0.97490561,89687.0,89686.0,3.91e-06]
[1765784521234,0.97490561,89687.0,89659.0,0.00064123]
[1765784521235,0.22306491,89660.0,89659.0,0.00064123]
[1765784521466,0.36741586,89660.0,89659.0,0.00073514]
[1765784521672,0.39202586,89660.0,89659.0,0.00073514]
[1765784521910,0.40318234,89660.0,89659.0,0.00073514]
[1765784522338,0.40418234,89660.0,89659.0,0.00073514]
[1765784523191,0.27532139,89660.0,89659.0,0.00073514]
[1765784523346,0.37957234,89660.0,89659.0,0.00073514]
[1765784523725,0.40418234,89660.0,89659.0,0.00073514]
[1765784524810,0.01215648,89660.0,89659.0,0.00073514]
[1765784524988,0.0186,89660.0,89659.0,0.00073514]
[1765784525213,0.12986095,89660.0,89659.0,0.00073514]
[1765784525763,0.16996095,89660.0,89659.0,0.00073514]
[1765784525974,0.16996095,89660.0,89659.0,0.00173514]
[1765784526619,0.16996095,89660.0,89659.0,0.00073514]
[1765784527068,0.16896095,89660.0,89659.0,0.00073514]
[1765784527521,0.16896095,89660.0,89659.0,0.00173514]
[1765784527726,0.16896095,89660.0,89659.0,0.00073514]
[1765784528095,0.16896095,89660.0,89659.0,0.00173514]
[1765784536061,0.12886095,89660.0,89659.0,0.00173514]
[1765784536278,0.11126095,89661.0,89659.0,0.00173514]
[1765784536481,0.0176,89660.0,89659.0,0.00173514]
[1765784536687,0.11126095,89660.0,89659.0,0.0128885]
[1765784536889,0.12886095,89660.0,89659.0,0.0128885]
[1765784537514,0.31996264,89768.0,89667.0,0.01115237]
[1765784537515,0.022512,89670.0,89667.0,0.01115237]
[1765784537724,0.12886095,89666.0,89664.0,0.22305355]
[1765784538126,0.11126095,89666.0,89665.0,0.01115262]
[1765784538330,0.12886095,89666.0,89665.0,0.01115262]
[1765784538542,0.12886095,89666.0,89662.0,0.01236]
[1765784538749,0.22305742,89664.0,89662.0,0.01236]
[1765784538952,0.01115299,89662.0,89659.0,0.00073514]
[1765784539424,0.22306478,89661.0,89659.0,0.00073514]
[1765784540307,0.15126095,89660.0,89659.0,0.00073514]
[1765784541082,0.01115249,89666.0,89661.0,0.01115312]
[1765784541327,0.0176,89662.0,89661.0,0.01115312]
[1765784541541,0.02875262,89665.0,89661.0,0.03424312]
[1765784541706,0.14001357,89665.0,89661.0,0.01115312]
[1765784542459,0.14001357,89665.0,89661.0,0.01215312]
[1765784542702,0.1224132,89668.0,89662.0,0.01115299]
[1765784542874,0.0176,89667.0,89662.0,0.03424299]
[1765784543074,0.02875237,89667.0,89662.0,0.01115299]
[1765784543278,0.01115262,89665.0,89662.0,0.01115299]
[1765784543705,0.02875249,89666.0,89662.0,0.01115299]
[1765784544378,0.25180253,89666.0,89662.0,0.01115299]
[1765784544778,0.02875249,89666.0,89663.0,0.01115287]
[1765784544980,0.12886095,89666.0,89663.0,0.2342103]
[1765784545186,0.12886095,89666.0,89663.0,0.2573003]
[1765784546193,0.12886095,89666.0,89665.0,0.22305247]
[1765784546431,0.12886095,89666.0,89663.0,0.2573003]
[1765784546664,0.12886095,89666.0,89663.0,0.01115287]
[1765784547313,0.12886095,89666.0,89663.0,0.23420941]
[1765784547716,0.12886095,89666.0,89663.0,0.23620941]
[1765784548055,0.12886095,89666.0,89665.0,0.002]
[1765784548639,0.12886095,89666.0,89663.0,0.23620941]
[1765784548832,0.12886095,89666.0,89663.0,0.23820941]
[1765784549313,0.12886095,89666.0,89663.0,0.23420941]
[1765784549614,0.12886095,89666.0,89665.0,0.004]
[1765784549980,0.12886095,89666.0,89665.0,0.002]
[1765784550340,0.34542994,89671.0,89670.0,1.60307117]
[1765784550535,0.36302994,89671.0,89670.0,1.60307117]
[1765784552147,0.36302994,89671.0,89670.0,1.60407117]
[1765784552355,0.36302994,89671.0,89670.0,1.60507117]
[1765784554884,0.37804994,89671.0,89670.0,1.60507117]
[1765784556225,0.36302994,89671.0,89670.0,1.60507117]
[1765784558757,0.03349805,89689.0,89678.0,0.011151]
[1765784558758,0.01115001,89686.0,89678.0,0.011151]
[1765784559082,0.12239016,89685.0,89682.0,0.0111505]
[1765784559286,0.11124003,89685.0,89682.0,0.0111505]
[1765784559424,0.11124003,89685.0,89679.0,0.04626088]
[1765784559425,0.01115026,89684.0,89679.0,0.04626088]
[1765784559630,0.01115026,89684.0,89680.0,0.01115075]
[1765784559824,0.01115026,89684.0,89680.0,0.03432075]
[1765784560048,0.01115026,89684.0,89680.0,0.01115075]
[1765784560268,0.01115026,89684.0,89681.0,0.01115063]
[1765784561240,0.11124003,89685.0,89681.0,0.01115063]
[1765784561425,0.12239016,89685.0,89682.0,0.0111505]
[1765784561631,0.01115001,89686.0,89683.0,0.01115038]
[1765784562760,0.01115001,89686.0,89683.0,0.01215038]
[1765784563636,0.01115001,89686.0,89683.0,0.01315038]
[1765784565613,0.01114988,89687.0,89683.0,0.01315038]
[1765784566611,0.01114988,89687.0,89683.0,0.01115038]
[1765784566948,0.01114988,89687.0,89683.0,0.01315038]
[1765784569350,0.01115001,89686.0,89683.0,0.002]
[1765784569492,0.11124003,89684.0,89683.0,0.002]
[1765784570111,0.11124003,89684.0,89683.0,0.001]
[1765784570720,0.11124003,89684.0,89683.0,0.002]
[1765784571129,0.11124003,89682.0,89681.0,0.01115063]
[1765784571312,0.11124003,89682.0,89681.0,0.2341633]
[1765784571707,0.11124003,89682.0,89681.0,0.03432063]
[1765784571912,0.11124003,89682.0,89681.0,0.02317]
[1765784572132,0.22301765,89679.0,89672.0,0.37143483]
[1765784572337,0.11124003,89676.0,89672.0,0.15955175]
[1765784572555,0.11124003,89676.0,89673.0,0.01115162]
[1765784572752,0.11124003,89676.0,89673.0,0.03432162]
[1765784573200,0.11124003,89676.0,89674.0,0.24620008]
[1765784573583,0.0111505,89682.0,89678.0,0.011151]
[1765784573758,0.0111505,89682.0,89676.0,0.22302511]
[1765784573759,0.11124003,89679.0,89676.0,0.23417636]
[1765784574759,0.12239091,89679.0,89673.0,0.01315162]
[1765784574980,0.011151,89678.0,89674.0,0.0111515]
[1765784575181,0.22302262,89677.0,89673.0,0.01315162]
[1765784575498,0.011151,89678.0,89676.0,0.001]
[1765784575698,0.011151,89678.0,89674.0,0.0111515]
[1765784575699,0.01115113,89677.0,89674.0,0.0111515]
[1765784575863,0.23417375,89677.0,89676.0,0.001]
[1765784576061,0.01115113,89677.0,89676.0,0.001]
[1765784576263,0.01115113,89677.0,89674.0,0.0343215]
[1765784576681,0.01115113,89677.0,89676.0,0.001]
[1765784577494,0.17389403,89677.0,89676.0,0.001]
[1765784577719,0.17389403,89677.0,89674.0,0.001]
[1765784577720,0.11124003,89675.0,89674.0,0.001]
[1765784577930,0.12703003,89675.0,89674.0,0.001]
[1765784578092,0.14976003,89675.0,89674.0,0.001]
[1765784579131,0.11124003,89671.0,89670.0,1.60307117]
[1765784579335,0.12703003,89671.0,89670.0,1.60307117]
[1765784579537,0.14976003,89671.0,89670.0,1.60307117]
[1765784580397,0.14976003,89671.0,89670.0,1.60507117]
[1765784580590,0.03852,89671.0,89670.0,1.60507117]
[1765784580782,0.14976003,89671.0,89670.0,1.60507117]
[1765784581134,0.14976003,89671.0,89670.0,1.60707117]
[1765784593818,0.16736003,89671.0,89670.0,1.60707117]
[1765784607572,0.16736003,89671.0,89670.0,1.60507117]
[1765784608190,0.16736003,89671.0,89670.0,1.60307117]
[1765784609245,0.17304003,89671.0,89670.0,1.60307117]
[1765784623231,0.02147,89671.0,89670.0,1.60307117]
[1765784623429,0.13452003,89671.0,89670.0,1.60307117]
[1765784624064,0.17335003,89671.0,89670.0,1.60307117]
[1765784625091,0.17335003,89671.0,89670.0,1.60407117]
[1765784625469,0.17335003,89671.0,89670.0,1.60507117]
[1765784627414,0.13452003,89671.0,89670.0,1.60507117]
[1765784628540,0.0176,89671.0,89670.0,1.60507117]
[1765784628964,0.12884003,89671.0,89670.0,1.60507117]
[1765784631153,0.01115162,89673.0,89670.0,1.60507117]
[1765784631353,0.01115162,89673.0,89671.0,0.02415]
[1765784631556,0.22303506,89672.0,89671.0,0.02415]
[1765784631758,0.11124003,89671.0,89670.0,1.60507117]
[1765784632165,0.11124003,89671.0,89670.0,1.60407117]
[1765784632977,0.11124003,89671.0,89670.0,1.60307117]
[1765784633181,0.11124003,89671.0,89670.0,1.60407117]
[1765784633408,0.11124003,89671.0,89670.0,1.60507117]
[1765784633583,0.11124003,89671.0,89670.0,1.60407117]
[1765784633800,0.11124003,89671.0,89670.0,1.60507117]
[1765784636015,0.22303506,89672.0,89670.0,1.60507117]
[1765784636229,0.11124003,89671.0,89670.0,1.60507117]
[1765784637584,0.11124003,89671.0,89670.0,1.60407117]
[1765784637779,0.11124003,89671.0,89670.0,1.60507117]
[1765784638348,0.11124003,89671.0,89670.0,1.60407117]
[1765784638871,0.11124003,89671.0,89670.0,1.60507117]
[1765784641343,0.22303506,89672.0,89670.0,1.64419117]
[1765784641548,0.01115137,89675.0,89671.0,0.03912]
[1765784641734,0.011151,89678.0,89675.0,0.03901137]
[1765784641937,0.22301018,89683.0,89677.0,0.01613]
[1765784641938,0.0111505,89682.0,89677.0,0.01613]
[1765784642123,0.01115026,89684.0,89682.0,0.02786]
[1765784642283,0.01115026,89684.0,89682.0,0.01173]
[1765784642482,0.23415879,89683.0,89680.0,0.01173]
[1765784643626,0.23515879,89683.0,89680.0,0.01173]
[1765784643951,0.001,89683.0,89681.0,0.22301267]
[1765784644988,0.002,89683.0,89681.0,0.22301267]
[1765784645402,0.001,89683.0,89681.0,0.22301267]
[1765784645603,0.01115013,89685.0,89681.0,0.2341633]
[1765784646002,0.01115013,89685.0,89682.0,0.0111505]
[1765784647021,0.01115001,89686.0,89683.0,0.01115038]
[1765784647223,0.001,89685.0,89683.0,0.23415782]
[1765784647862,0.12806991,89687.0,89683.0,0.01115038]
[1765784648041,0.001,89686.0,89683.0,0.01115038]
[1765784648245,0.001,89686.0,89682.0,0.0111505]
[1765784648246,0.01215001,89686.0,89682.0,0.0111505]
[1765784648662,0.01115001,89686.0,89683.0,0.01115038]
[1765784649112,0.01215013,89685.0,89682.0,0.0111505]
[1765784650223,0.01115013,89685.0,89682.0,0.0111505]
[1765784652652,0.01115001,89686.0,89682.0,0.0111505]
[1765784652832,0.01115001,89686.0,89681.0,0.01115063]
[1765784653073,0.01115013,89685.0,89681.0,0.01115063]
[1765784653408,0.12238942,89691.0,89685.0,0.23913273]
[1765784653618,0.12238942,89691.0,89686.0,0.01613]
[1765784653619,0.22299278,89689.0,89686.0,0.01613]
[1765784653864,0.22300269,89686.0,89684.0,0.01173]
[1765784654264,0.22300269,89686.0,89680.0,0.01173]
[1765784654265,0.22301267,89681.0,89680.0,0.01173]
[1765784655024,0.11124003,89682.0,89680.0,0.03472]
[1765784656754,0.11124003,89682.0,89680.0,0.03872]
[1765784656958,0.11124003,89682.0,89680.0,0.004]
[1765784656959,0.23438248,89682.0,89680.0,0.004]
[1765784657164,0.11124003,89681.0,89680.0,0.002]
[1765784657509,0.11124003,89681.0,89680.0,0.004]
[1765784657792,0.33425251,89682.0,89680.0,0.004]
[1765784657938,0.33425251,89682.0,89680.0,0.002]
[1765784658365,0.33425251,89682.0,89680.0,0.003]
[1765784658577,0.33425251,89682.0,89680.0,0.02599]
[1765784659250,0.11124003,89682.0,89680.0,0.02399]
[1765784659451,0.11124003,89682.0,89680.0,0.02499]
[1765784659880,0.11124003,89682.0,89680.0,0.02399]
[1765784660067,0.11124003,89682.0,89680.0,0.02499]
[1765784660576,0.11124003,89682.0,89681.0,0.25087267]
[1765784660822,0.01115001,89686.0,89683.0,0.01115038]
[1765784661070,0.01114963,89689.0,89685.0,0.02786]
[1765784661298,0.01114963,89689.0,89688.0,0.01613]
[1765784661779,0.01114963,89689.0,89688.0,0.03912]
[1765784663094,0.22300024,89686.0,89685.0,0.01173]
[1765784663546,0.22300024,89686.0,89685.0,0.02786]
[1765784663760,0.22300024,89686.0,89685.0,0.05085]
[1765784664421,0.22300024,89686.0,89685.0,0.05185]
[1765784664718,0.33424027,89686.0,89685.0,0.05185]
[1765784665437,0.22300024,89686.0,89685.0,0.001]
[1765784665865,0.22300024,89686.0,89685.0,0.002]
[1765784671688,0.23414664,89688.0,89685.0,0.002]
[1765784672514,0.22300024,89686.0,89685.0,0.002]
[1765784672718,0.22300024,89686.0,89681.0,0.01173]
[1765784672719,0.23415718,89684.0,89681.0,0.01173]
[1765784672923,0.23415718,89684.0,89681.0,0.03502]
[1765784673946,0.23415718,89684.0,89681.0,0.03602]
[1765784674354,0.22301019,89682.0,89681.0,0.03602]
[1765784674552,0.22301019,89682.0,89681.0,0.01273]
[1765784675158,0.23415718,89684.0,89681.0,0.01373]
[1765784675400,0.22300993,89683.0,89681.0,0.01173]
[1765784675558,0.22300993,89683.0,89681.0,0.01373]
[1765784675760,0.22300993,89683.0,89681.0,0.01573]
[1765784675954,0.22300993,89683.0,89681.0,0.01173]
[1765784676501,0.22300993,89683.0,89681.0,0.01473]
[1765784676712,0.22300993,89683.0,89681.0,0.01273]
[1765784676891,0.22300993,89683.0,89681.0,0.01173]
[1765784677416,0.22300993,89683.0,89681.0,0.03602]
[1765784677570,0.01114951,89690.0,89685.0,0.01115013]
[1765784677772,0.01114951,89690.0,89686.0,0.02329]
[1765784677773,0.22299278,89689.0,89686.0,0.02329]
[1765784678009,0.01114963,89689.0,89686.0,0.02329]
[1765784678176,0.01114963,89689.0,89688.0,0.02866]
[1765784678716,0.01114988,89687.0,89684.0,0.01228]
[1765784678892,0.22300273,89685.0,89684.0,0.01228]
[1765784679123,0.33424259,89686.0,89684.0,0.01228]
[1765784679788,0.33424259,89686.0,89684.0,0.03557]
[1765784680236,0.33424259,89686.0,89684.0,0.001]
[1765784680237,0.26103273,89685.0,89684.0,0.001]
[1765784680435,0.34954276,89685.0,89684.0,0.001]
[1765784680566,0.34954276,89685.0,89684.0,0.002]
[1765784680774,0.33424276,89685.0,89684.0,0.002]
[1765784681162,0.33424276,89685.0,89684.0,0.001]
[1765784681640,0.33424276,89685.0,89684.0,0.002]
[1765784681852,0.01115063,89681.0,89677.0,0.02288113]
[1765784682178,0.01115063,89681.0,89678.0,0.02329]
[1765784682941,0.22301516,89680.0,89678.0,0.02329]
[1765784683309,0.01115063,89681.0,89678.0,0.02429]
[1765784683608,0.01115063,89681.0,89678.0,0.001]
[1765784683609,0.11124003,89679.0,89678.0,0.001]
[1765784684352,0.11124003,89679.0,89677.0,0.01173]
[1765784684559,0.22302013,89678.0,89677.0,0.01173]
[1765784685899,0.22302013,89678.0,89677.0,0.01373]
[1765784686039,0.22302013,89678.0,89677.0,0.002]
[1765784687073,0.37229016,89678.0,89677.0,0.002]
[1765784687894,0.37229016,89678.0,89677.0,0.001]
[1765784688114,0.33427757,89671.0,89670.0,1.60307117]
[1765784689259,0.22303754,89671.0,89670.0,1.61945117]
[1765784689464,0.22303754,89671.0,89670.0,1.64374117]
[1765784689664,0.2341861,89673.0,89670.0,1.62045117]
[1765784690004,0.2341861,89673.0,89670.0,1.60407117]
[1765784690548,0.33427757,89671.0,89670.0,1.60507117]
[1765784690779,0.33427757,89671.0,89670.0,1.60407117]
[1765784691182,0.33427757,89671.0,89670.0,1.60507117]
[1765784691387,0.33427757,89671.0,89670.0,1.60407117]
[1765784691799,0.33427757,89671.0,89670.0,1.60507117]
[1765784692016,0.33427757,89671.0,89670.0,1.60407117]
[1765784692233,0.33427757,89671.0,89670.0,1.60507117]
[1765784692694,0.33427757,89671.0,89670.0,1.60407117]
[1765784693129,0.33427757,89671.0,89670.0,1.60507117]
[1765784702450,0.11124003,89671.0,89670.0,1.60507117]
[1765784702651,0.33427757,89671.0,89670.0,1.60507117]
[1765784703375,0.11124003,89671.0,89670.0,1.60507117]
[1765784703583,0.2341861,89673.0,89670.0,1.60507117]
[1765784703784,0.11124003,89672.0,89670.0,1.60507117]
[1765784703993,0.01115137,89675.0,89672.0,0.01529]
[1765784704228,0.01115137,89675.0,89674.0,0.02746]
[1765784704672,0.01115137,89675.0,89674.0,0.05006]
[1765784705026,0.01115125,89676.0,89674.0,0.05006]
[1765784705370,0.23417636,89676.0,89675.0,0.03789]
[1765784706129,0.01115125,89676.0,89675.0,0.03789]
[1765784706375,0.23417636,89676.0,89675.0,0.03789]
[1765784706572,0.01115125,89676.0,89675.0,0.03789]
[1765784707546,0.01115125,89676.0,89675.0,0.04189]
[1765784708545,0.011151,89678.0,89675.0,0.04189]
[1765784708747,0.23416418,89681.0,89675.0,0.04189]
[1765784708748,0.01115075,89680.0,89677.0,0.02644113]
[1765784708949,0.23416418,89681.0,89677.0,0.02644113]
[1765784708950,0.0111505,89682.0,89679.0,0.01529]
[1765784709235,0.0111505,89682.0,89680.0,0.01529]
[1765784709424,0.0111505,89682.0,89681.0,0.01529]
[1765784709632,0.0111505,89682.0,89681.0,0.03789]
[1765784710631,0.23416095,89682.0,89681.0,0.03889]
[1765784711719,0.23416095,89682.0,89681.0,0.03989]
[1765784711927,0.23416069,89682.0,89681.0,0.03989]
[1765784712966,0.23416069,89682.0,89681.0,0.01729]
[1765784713721,0.23416069,89682.0,89681.0,0.002]
[1765784714844,0.25020069,89682.0,89681.0,0.002]
[1765784715390,0.27293069,89682.0,89681.0,0.002]
[1765784715727,0.38417072,89682.0,89681.0,0.002]
[1765784716332,0.25020069,89682.0,89681.0,0.002]
[1765784716550,0.23416069,89682.0,89681.0,0.001]
[1765784717392,0.01115063,89681.0,89678.0,0.011151]
[1765784717585,0.23416591,89680.0,89678.0,0.0226]
[1765784717820,0.12239004,89686.0,89682.0,0.0111505]
[1765784717970,0.23415548,89684.0,89683.0,0.01217]
[1765784718172,0.23415548,89684.0,89683.0,0.03477]
[1765784718380,0.23415548,89684.0,89683.0,0.01217]
[1765784718922,0.22302835,89675.0,89672.0,0.01217]
[1765784719262,0.22302835,89675.0,89672.0,0.03477]
[1765784719481,0.23417972,89675.0,89673.0,0.0226]
[1765784719999,0.23417972,89675.0,89672.0,0.01217]
[1765784720178,0.22303245,89674.0,89672.0,0.01217]
[1765784720379,0.22303245,89674.0,89672.0,0.01417]
[1765784720643,0.22303245,89674.0,89672.0,0.002]
[1765784720818,0.22303506,89672.0,89671.0,0.1484]
[1765784722175,0.22303506,89672.0,89671.0,0.1494]
[1765784722517,0.22303506,89672.0,89671.0,0.001]
[1765784722743,0.22303506,89672.0,89671.0,0.002]
[1765784725658,0.0111515,89674.0,89671.0,0.03989]
[1765784725980,0.011151,89678.0,89674.0,0.0111515]
[1765784726314,0.011151,89678.0,89677.0,0.02746]
[1765784726721,0.011151,89678.0,89677.0,0.05006]
[1765784728203,0.01115038,89683.0,89678.0,0.011151]
[1765784728412,0.23415567,89684.0,89683.0,0.01197]
[1765784729602,0.01114976,89688.0,89684.0,0.01115026]
[1765784729923,0.23414763,89687.0,89683.0,0.06351038]
[1765784730082,0.23414763,89687.0,89683.0,0.06451038]
[1765784730283,0.22300273,89685.0,89684.0,0.02408]
[1765784730485,0.01115001,89686.0,89684.0,0.02408]
[1765784730711,0.01115001,89686.0,89684.0,0.04039]
[1765784731684,0.22300273,89685.0,89684.0,0.04039]
[1765784731891,0.01115001,89686.0,89684.0,0.04039]
[1765784732097,0.22300273,89685.0,89684.0,0.04039]
[1765784732299,0.22300273,89685.0,89684.0,0.04139]
[1765784732705,0.22300273,89685.0,89684.0,0.04239]
[1765784733072,0.01114988,89687.0,89684.0,0.05354026]
[1765784733186,0.01114988,89687.0,89686.0,0.01213]
[1765784734698,0.23414802,89687.0,89686.0,0.01213]
[1765784735537,0.23414802,89687.0,89686.0,0.01313]
[1765784736167,0.23414763,89687.0,89686.0,0.05352]
[1765784736765,0.23414763,89687.0,89686.0,0.001]
[1765784746117,0.01114988,89687.0,89686.0,0.001]
[1765784746320,0.38370766,89687.0,89686.0,0.001]
[1765784746758,0.38532053,89687.0,89686.0,0.001]
[1765784747834,0.38532053,89687.0,89672.0,0.1484]
[1765784747835,0.22303257,89673.0,89672.0,0.1484]
[1765784748925,0.22303257,89673.0,89672.0,0.1494]
[1765784750006,0.22303257,89673.0,89672.0,0.1504]
[1765784750938,0.3725926,89673.0,89672.0,0.1504]
[1765784751467,0.26135257,89673.0,89672.0,0.1504]
[1765784751669,0.26135257,89673.0,89672.0,0.1494]
[1765784751852,0.3725926,89673.0,89672.0,0.1484]
[1765784752267,0.2907,89696.0,89682.0,0.0111505]
[1765784752268,0.01114901,89694.0,89682.0,0.0111505]
[1765784752467,0.2907,89696.0,89675.0,0.22302497]
[1765784752468,0.01114876,89696.0,89693.0,0.02844]
[1765784752707,0.01114864,89697.0,89695.0,0.02844]
[1765784752882,0.01114814,89701.0,89697.0,0.01114864]
[1765784753088,0.01114827,89700.0,89696.0,0.01114876]
[1765784753405,0.01114852,89698.0,89695.0,0.01213]
[1765784753650,0.01114852,89698.0,89695.0,0.02327889]
[1765784753772,0.01114839,89699.0,89696.0,0.01114876]
[1765784754382,0.00011466,89701.0,89698.0,0.01631]
[1765784754632,0.0112628,89701.0,89698.0,0.02745852]
[1765784755046,0.0112628,89701.0,89698.0,0.01631]
[1765784755296,0.001,89699.0,89698.0,0.01631]
[1765784755623,0.0112628,89701.0,89698.0,0.01631]
[1765784756082,0.0132628,89701.0,89698.0,0.01631]
[1765784757232,0.0152628,89701.0,89698.0,0.01631]
[1765784757473,0.0152628,89701.0,89698.0,0.04003]
[1765784757847,0.0152628,89701.0,89695.0,0.01213]
[1765784757848,0.01114852,89698.0,89695.0,0.01213]